bitfinex/quotes_SOLUSD_20240729
["timestamp","ask_amount","ask_price","bid_price","bid_amount"]
[1722228696494,45.0,193.67,193.56,25.73]
[1722228696906,15.1673,193.68,193.57,1.03291723]
[1722228697099,15.1673,193.68,193.56,25.73]
[1722228697305,19.298,193.68,193.56,25.73]
[1722228697701,4.1307,193.67,193.56,25.73]
[1722228698200,15.1673,193.68,193.56,25.73]
[1722228698408,45.17,193.67,193.56,25.73]
[1722228698794,45.0,193.67,193.56,25.73]
[1722228699801,0.34,193.66,193.56,25.73]
[1722228700108,15.93,193.66,193.53,25.73]
[1722228700314,49.1311,193.65,193.53,25.73]
[1722228700496,0.17,193.64,193.53,25.73]
[1722228701085,0.17,193.64,193.53,26.76311703]
[1722228701287,45.0,193.65,193.53,25.73]
[1722228702411,45.0,193.66,193.53,25.73]
[1722228703091,0.17,193.65,193.53,25.73]
[1722228703304,0.17,193.65,193.54,1.03307225]
[1722228703496,0.17,193.65,193.55,1.03305486]
[1722228703695,0.17,193.65,193.53,25.73]
[1722228703892,0.17,193.65,193.53,26.76305492]
[1722228705718,45.0,193.66,193.53,26.76305492]
[1722228705719,45.0,193.66,193.56,25.73]
[1722228705895,15.1673,193.68,193.59,25.73]
[1722228706297,19.2978,193.68,193.59,25.73]
[1722228706618,15.1673,193.68,193.59,25.73]
[1722228708301,45.0,193.67,193.59,25.73]
[1722228711418,45.0,193.68,193.59,25.73]
[1722228719205,45.0,193.68,193.6,1.03288055]
[1722228721940,0.17,193.67,193.56,25.73]
[1722228722251,4.4707,193.67,193.55,41.9991]
[1722228722533,45.0,193.66,193.55,41.9991]
[1722228722712,0.17,193.67,193.55,41.9991]
[1722228723114,0.34,193.67,193.55,41.9991]
[1722228723534,0.17,193.67,193.55,41.9991]
[1722228723715,0.17,193.67,193.58,25.73]
[1722228723927,45.0,193.68,193.58,25.73]
[1722228724326,0.17,193.67,193.58,25.73]
[1722228725307,45.0,193.68,193.58,25.73]
[1722228725533,45.0,193.68,193.61,25.73]
[1722228725709,45.0,193.68,193.62,1.03285609]
[1722228726431,45.0,193.68,193.61,25.73]
[1722228726952,22.0858,193.77,193.64,25.73]
[1722228727116,4.9308419,193.74,193.64,25.73]
[1722228727814,0.8016419,193.74,193.64,25.73]
[1722228728322,45.8016419,193.74,193.64,25.73]
[1722228728520,0.34,193.73,193.64,25.73]
[1722228729036,0.8016419,193.74,193.67,25.73]
[1722228729351,0.8016419,193.74,193.62,15.8218]
[1722228729516,0.8016419,193.74,193.65,25.73]
[1722228730141,0.8016419,193.74,193.66,1.03267764]
[1722228730316,0.8016419,193.74,193.65,25.73]
[1722228730511,0.17,193.73,193.65,25.73]
[1722228731020,0.8016419,193.74,193.65,25.73]
[1722228734939,0.8016419,193.74,193.62,41.5518]
[1722228735239,0.8016419,193.74,193.68,12.83]
[1722228737138,12.83,193.73,193.62,15.8218]
[1722228737319,49.2996,193.72,193.66,12.83]
[1722228737838,45.17,193.72,193.66,12.83]
[1722228738627,45.17,193.72,193.67,12.83]
[1722228738928,45.0,193.72,193.6,51.32]
[1722228739238,45.0,193.73,193.67,12.83]
[1722228739432,0.17,193.72,193.67,12.83]
[1722228739932,0.17,193.72,193.6,51.32]
[1722228740136,0.17,193.72,193.66,12.83]
[1722228741737,4.2996,193.72,193.65,12.83]
[1722228741949,45.0,193.71,193.61,1.03273593]
[1722228742145,45.0,193.71,193.65,12.83]
[1722228742146,0.17,193.7,193.65,12.83]
[1722228743424,45.0,193.71,193.68,12.83]
[1722228744938,45.0,193.72,193.67,12.83]
[1722228745122,13.17,193.71,193.65,12.83]
[1722228745322,45.0,193.7,193.65,12.83]
[1722228746124,45.34,193.71,193.65,12.83]
[1722228746325,45.17,193.71,193.65,12.83]
[1722228746547,45.0,193.71,193.65,12.83]
[1722228747924,0.17,193.7,193.65,12.83]
[1722228750147,49.1298,193.71,193.65,12.83]
[1722228750348,13.6316419,193.74,193.67,12.83]
[1722228750645,12.83,193.73,193.67,12.83]
[1722228751346,12.83,193.73,193.66,12.83]
[1722228751943,45.0,193.72,193.66,12.83]
[1722228754253,45.0,193.72,193.67,12.83]
[1722228754461,45.0,193.73,193.67,12.83]
[1722228754754,0.17,193.72,193.66,12.83]
[1722228754947,0.17,193.72,193.67,12.83]
[1722228755844,4.87139384,193.84,193.67,12.83]
[1722228756179,15.53,193.79,193.71,12.83]
[1722228756343,32.83,193.78,193.71,27.2844]
[1722228756731,12.83,193.77,193.71,27.2844]
[1722228756950,12.83,193.77,193.71,14.4544]
[1722228757543,12.83,193.75,193.71,10.3246]
[1722228757745,5.192,193.81,193.7,4.1299]
[1722228757746,1.58769072,193.83,193.79,4.128]
[1722228757961,1.58769072,193.83,193.78,12.83]
[1722228758169,14.41769072,193.83,193.75,10.3222]
[1722228758471,12.83,193.82,193.76,4.1287]
[1722228758965,16.9575,193.82,193.76,4.1287]
[1722228759962,17.2978,193.81,193.75,10.3222]
[1722228760140,12.83,193.8,193.75,10.3222]
[1722228760334,0.17,193.79,193.75,10.3222]
[1722228760644,13.0,193.79,193.73,4.1294]
[1722228760947,13.0,193.79,193.72,12.83]
[1722228762237,13.0,193.79,193.75,4.129]
[1722228762849,13.0,193.79,193.74,10.323]
[1722228762850,12.83,193.78,193.74,10.323]
[1722228763055,13.0,193.77,193.74,14.4522]
[1722228763247,12.83,193.77,193.74,10.323]
[1722228763562,12.83,193.77,193.74,14.4521]
[1722228763770,13.0,193.79,193.74,14.4521]
[1722228763951,13.0,193.79,193.75,4.129]
[1722228765262,16.464,193.85,193.78,12.83]
[1722228765441,12.83,193.87,193.81,16.9575]
[1722228765639,16.9566,193.86,193.8,14.4475]
[1722228765844,16.9566,193.86,193.8,10.3196]
[1722228766068,12.83,193.85,193.8,14.4475]
[1722228766564,12.83,193.85,193.8,10.3196]
[1722228766741,12.83,193.83,193.76,23.1515]
[1722228766941,12.83,193.83,193.78,4.1283]
[1722228767454,16.9573,193.83,193.77,4.1285]
[1722228768554,12.83,193.82,193.78,4.1283]
[1722228768766,12.83,193.83,193.78,4.1283]
[1722228769263,12.83,193.83,193.79,4.128]
[1722228769648,12.83,193.83,193.79,4.1281]
[1722228770465,12.83,193.83,193.77,4.1284]
[1722228770674,0.17,193.84,193.79,4.128]
[1722228770967,13.0,193.83,193.78,4.1283]
[1722228772374,12.83,193.82,193.78,4.1283]
[1722228775760,0.17,193.83,193.78,4.1283]
[1722228775959,13.0,193.83,193.78,4.1283]
[1722228776155,0.17,193.82,193.79,4.1281]
[1722228776768,12.83,193.83,193.78,10.3204]
[1722228777651,12.83,193.83,193.79,4.1281]
[1722228777955,12.83,193.83,193.78,14.4487]
[1722228778464,13.0,193.82,193.78,14.4487]
[1722228778662,12.83,193.82,193.78,14.4487]
[1722228779057,12.83,193.82,193.78,10.3204]
[1722228779561,12.83,193.82,193.78,14.4486]
[1722228779868,12.83,193.83,193.78,14.4486]
[1722228780067,0.17,193.82,193.79,4.1281]
[1722228780259,12.83,193.83,193.8,4.1279]
[1722228780967,12.83,193.83,193.78,14.4485]
[1722228781772,12.83,193.83,193.75,4.1288]
[1722228781950,12.83,193.81,193.76,4.1287]
[1722228782147,0.17,193.8,193.76,4.1287]
[1722228782350,12.83,193.81,193.74,23.1527]
[1722228782552,12.83,193.81,193.76,4.1286]
[1722228782770,13.0,193.82,193.76,4.1286]
[1722228783176,13.0,193.82,193.77,4.1285]
[1722228784057,13.0,193.82,193.76,16.9587]
[1722228784270,17.1275,193.82,193.76,16.9587]
[1722228784877,17.1275,193.82,193.76,4.1287]
[1722228785253,13.0,193.82,193.77,4.1285]
[1722228785453,12.83,193.81,193.77,4.1285]
[1722228785648,0.17,193.82,193.77,4.1285]
[1722228785958,12.83,193.81,193.77,4.1285]
[1722228786371,12.83,193.81,193.76,4.1287]
[1722228787649,12.83,193.81,193.77,4.1285]
[1722228788178,16.9577,193.81,193.75,4.1289]
[1722228788377,0.17,193.8,193.75,4.1289]
[1722228788761,0.17,193.8,193.76,4.1287]
[1722228789370,0.17,193.8,193.77,4.1285]
[1722228789673,17.60287738,193.89,193.78,29.3235]
[1722228789874,12.83,193.84,193.79,4.1281]
[1722228790461,12.83,193.83,193.8,4.1279]
[1722228790681,12.83,193.84,193.8,4.1279]
[1722228790861,12.83,193.83,193.8,4.1279]
[1722228791382,12.83,193.81,193.77,10.3212]
[1722228791591,13.0,193.8,193.77,10.3212]
[1722228791880,12.83,193.8,193.77,14.4497]
[1722228792184,12.83,193.8,193.77,10.3212]
[1722228792976,0.17,193.79,193.75,4.129]
[1722228793366,13.0,193.79,193.75,4.1289]
[1722228793687,4.1277,193.81,193.73,10.3231]
[1722228793688,2.07693818,193.9,193.78,12.83]
[1722228793863,12.83,193.91,193.88,4.1262]
[1722228794060,12.83,193.91,193.86,10.3166]
[1722228794370,12.83,193.91,193.87,4.1262]
[1722228795290,6.4624,193.93,193.88,4.1261]
[1722228795578,6.4624,193.93,193.86,10.3166]
[1722228795579,12.83,193.91,193.87,4.1262]
[1722228797662,10.5877,193.93,193.86,10.3166]
[1722228797979,12.83,193.91,193.86,14.4431]
[1722228798366,36.19262521,193.97,193.86,23.1466]
[1722228798569,12.83,193.92,193.86,23.1466]
[1722228798770,12.83,193.93,193.86,23.1466]
[1722228799281,12.83,193.92,193.86,10.3166]
[1722228800476,12.83,193.92,193.87,4.1263]
[1722228801570,12.83,193.91,193.87,4.1263]
[1722228802487,12.83,193.91,193.86,14.4431]
[1722228804884,12.83,193.91,193.86,10.3166]
[1722228805567,12.83,193.91,193.86,14.4431]
[1722228807976,16.9556,193.91,193.86,10.3166]
[1722228808174,12.83,193.89,193.86,10.3166]
[1722228808388,12.83,193.88,193.86,10.3166]
[1722228808772,12.83,193.89,193.86,10.3166]
[1722228809791,13.0,193.9,193.86,10.3166]
[1722228809972,13.0,193.9,193.86,14.4432]
[1722228811078,12.83,193.88,193.84,4.1269]
[1722228811387,12.83,193.88,193.85,4.1268]
[1722228811779,12.83,193.89,193.85,4.1268]
[1722228812502,4.2955,193.92,193.86,4.1265]
[1722228812673,12.83,193.92,193.88,10.3156]
[1722228812873,12.83,193.92,193.86,16.6084]
[1722228813072,12.83,193.91,193.86,16.6084]
[1722228813797,12.83,193.91,193.86,20.735]
[1722228814188,0.17,193.9,193.86,20.735]
[1722228815785,13.0,193.9,193.85,4.1268]
[1722228815975,12.83,193.89,193.85,4.1268]
[1722228816787,13.0,193.9,193.85,4.1268]
[1722228818991,12.83,193.89,193.86,4.1266]
[1722228819800,12.83,193.87,193.84,10.3172]
[1722228820298,12.83,193.87,193.84,14.4442]
[1722228820501,4.2958,193.9,193.84,14.4442]
[1722228820679,12.83,193.88,193.84,14.4442]
[1722228820875,12.83,193.85,193.81,16.3001]
[1722228821097,12.83,193.82,193.78,14.4487]
[1722228821404,12.83,193.79,193.76,20.6277]
[1722228821606,12.83,193.78,193.76,20.6277]
[1722228822580,12.83,193.79,193.76,20.6277]
[1722228822802,12.83,193.8,193.77,4.1285]
[1722228824503,12.83,193.79,193.76,16.4989]
[1722228824802,12.83,193.78,193.76,16.4989]
[1722228825677,12.83,193.78,193.76,20.6276]
[1722228825876,12.83,193.78,193.76,16.4989]
[1722228826282,12.83,193.78,193.73,10.3235]
[1722228826778,12.83,193.78,193.75,4.1288]
[1722228827089,12.83,193.78,193.73,14.4527]
[1722228827291,12.83,193.78,193.73,10.3235]
[1722228827602,12.83,193.77,193.73,10.3235]
[1722228827928,12.83,193.75,193.71,4.1298]
[1722228828318,12.83,193.75,193.7,4.13]
[1722228829687,0.17,193.76,193.7,4.13]
[1722228829688,12.83,193.74,193.7,4.13]
[1722228830485,12.83,193.74,193.71,4.1298]
[1722228830693,0.17,193.76,193.7,4.13]
[1722228830888,12.83,193.74,193.7,4.13]
[1722228831209,12.83,193.74,193.69,10.3253]
[1722228831604,12.83,193.74,193.69,14.4555]
[1722228831796,12.83,193.73,193.69,14.4555]
[1722228832190,12.83,193.74,193.69,14.4555]
[1722228832718,4.2988,193.76,193.7,4.13]
[1722228833024,12.83,193.74,193.7,4.13]
[1722228835308,12.83,193.74,193.69,14.4555]
[1722228836999,12.83,193.73,193.69,14.4555]
[1722228838921,12.83,193.72,193.69,10.3253]
[1722228839823,12.83,193.73,193.69,14.4555]
[1722228840117,12.83,193.73,193.68,16.1676]
[1722228840319,12.83,193.74,193.69,4.1302]
[1722228840522,12.83,193.73,193.69,4.1302]
[1722228841109,12.83,193.73,193.68,16.1676]
[1722228842299,12.83,193.73,193.68,20.298]
[1722228842517,0.17,193.72,193.68,20.298]
[1722228842834,0.17,193.72,193.68,16.1676]
[1722228843007,13.0,193.72,193.68,16.1676]
[1722228843610,12.83,193.71,193.65,4.131]
[1722228843813,12.83,193.71,193.66,4.1309]
[1722228845211,16.9599,193.71,193.64,4.1312]
[1722228845434,12.83,193.67,193.63,31.0426]
[1722228845613,0.34,193.7,193.59,16.4604]
[1722228845614,12.83,193.66,193.59,16.4604]
[1722228845808,13.0,193.65,193.61,4.1319]
[1722228846839,0.17,193.65,193.61,4.1319]
[1722228847125,13.0,193.65,193.59,27.2932]
[1722228847329,12.83,193.64,193.59,14.4632]
[1722228847908,13.17,193.63,193.57,20.7153]
[1722228848113,12.83,193.62,193.58,4.1326]
[1722228848323,12.83,193.62,193.57,16.5826]
[1722228848500,0.17,193.61,193.56,4.1329]
[1722228848705,13.0,193.61,193.55,10.3327]
[1722228848927,13.0,193.61,193.57,4.1328]
[1722228849103,0.17,193.61,193.58,4.1326]
[1722228849304,12.83,193.62,193.58,4.1326]
[1722228849742,13.17,193.63,193.58,4.1326]
[1722228850031,13.17,193.63,193.57,4.1328]
[1722228850234,0.34,193.63,193.58,4.1325]
[1722228850438,24.131,193.66,193.58,23.1612]
[1722228850612,13.17,193.65,193.58,23.1612]
[1722228850933,12.83,193.64,193.58,23.1612]
[1722228851119,0.17,193.63,193.58,23.1612]
[1722228851324,4.3016,193.63,193.58,10.3312]
[1722228851537,4.1319,193.62,193.56,12.83]
[1722228851827,0.17,193.61,193.56,16.963]
[1722228852333,12.83,193.62,193.56,16.963]
[1722228852513,12.83,193.62,193.55,4.1332]
[1722228852843,13.0,193.61,193.55,4.1332]
[1722228853614,12.83,193.59,193.55,4.1332]
[1722228853815,12.83,193.58,193.54,10.3334]
[1722228854329,12.83,193.55,193.5,10.3356]
[1722228854516,0.17,193.54,193.5,10.3356]
[1722228854838,12.83,193.56,193.52,4.1339]
[1722228855134,0.17,193.55,193.52,4.1339]
[1722228855332,0.17,193.55,193.52,4.1338]
[1722228855540,13.0,193.57,193.52,4.1338]
[1722228855839,0.17,193.56,193.52,4.1338]
[1722228856025,4.1324,193.59,193.53,4.1336]
[1722228856218,12.83,193.57,193.53,4.1336]
[1722228856624,12.83,193.57,193.52,4.1339]
[1722228857835,12.83,193.56,193.51,4.1341]
[1722228858450,4.1328,193.57,193.52,4.1339]
[1722228858451,12.83,193.57,193.52,4.1339]
[1722228858957,12.83,193.56,193.52,4.1339]
[1722228860638,12.83,193.55,193.51,4.1341]
[1722228861340,4.3026,193.58,193.52,4.1339]
[1722228861646,12.83,193.57,193.53,4.1336]
[1722228861829,12.83,193.57,193.52,4.1339]
[1722228862520,12.83,193.57,193.5,10.3356]
[1722228862741,12.83,193.55,193.5,10.3356]
[1722228862955,0.17,193.54,193.48,4.1347]
[1722228863243,0.17,193.54,193.48,16.9647]
[1722228863759,13.0,193.54,193.48,4.1347]
[1722228864259,12.83,193.52,193.47,4.1349]
[1722228864551,12.83,193.51,193.47,4.1349]
[1722228865463,12.83,193.51,193.46,26.5825]
[1722228865464,16.9641,193.51,193.46,26.5825]
[1722228865655,12.83,193.51,193.46,30.7176]
[1722228865853,12.83,193.51,193.47,4.135]
[1722228866019,12.83,193.52,193.48,4.1347]
[1722228866751,0.17,193.54,193.49,4.1344]
[1722228866945,12.83,193.52,193.49,4.1344]
[1722228867143,12.83,193.52,193.46,26.5825]
[1722228867342,12.83,193.52,193.46,30.7175]
[1722228867548,12.83,193.52,193.47,4.1349]
[1722228867851,13.0,193.53,193.46,40.44625155]
[1722228868026,13.0,193.53,193.47,12.83]
[1722228868337,12.83,193.54,193.49,10.3364]
[1722228868755,12.83,193.55,193.5,4.1343]
[1722228868932,12.83,193.56,193.49,23.1664]
[1722228869130,12.83,193.56,193.51,4.1341]
[1722228869531,4.1329,193.57,193.51,4.1341]
[1722228869532,12.83,193.55,193.51,4.1341]
[1722228869732,12.83,193.55,193.5,4.1343]
[1722228870442,12.83,193.54,193.46,16.245]
[1722228870626,0.17,193.53,193.47,12.83]
[1722228871252,12.83,193.54,193.47,12.83]
[1722228871449,10.33,193.54,193.47,12.83]
[1722228872130,14.4635,193.54,193.48,4.1346]
[1722228872465,10.33,193.54,193.49,4.1345]
[1722228873147,12.83,193.53,193.48,10.3369]
[1722228873355,12.83,193.53,193.47,4.1349]
[1722228873556,0.17,193.52,193.46,29.075]
[1722228874668,0.17,193.52,193.47,4.135]
[1722228874861,16.9637,193.53,193.47,4.135]
[1722228875165,17.134,193.52,193.46,16.245]
[1722228875349,13.0,193.52,193.46,20.38]
[1722228875863,12.83,193.53,193.48,4.1347]
[1722228876052,16.9637,193.53,193.46,20.38]
[1722228876249,16.9637,193.53,193.47,16.9649]
[1722228876447,12.83,193.53,193.47,12.83]
[1722228876753,4.304,193.52,193.46,29.075]
[1722228878061,4.1337,193.53,193.47,4.1349]
[1722228878245,16.9637,193.53,193.47,4.1349]
[1722228878961,12.83,193.53,193.48,4.1346]
[1722228879468,12.83,193.53,193.47,10.3374]
[1722228879868,4.1338,193.53,193.47,23.1674]
[1722228880053,24.1338,193.53,193.47,23.1674]
[1722228880360,12.83,193.54,193.48,4.1346]
[1722228880536,4.1336,193.54,193.48,17.99819002]
[1722228880738,4.1336,193.54,193.48,16.9646]
[1722228881140,4.1336,193.54,193.48,12.83]
[1722228881345,13.0,193.55,193.47,14.4723]
[1722228881346,12.83,193.53,193.47,23.1674]
[1722228881839,16.9641,193.52,193.47,10.3374]
[1722228882741,4.1336,193.54,193.48,12.83]
[1722228882942,16.9636,193.54,193.48,12.83]
[1722228883272,12.83,193.54,193.49,4.1345]
[1722228883569,4.1335,193.54,193.48,16.9647]
[1722228884764,4.1339,193.52,193.47,10.3374]
[1722228887765,16.9639,193.52,193.47,10.3374]
[1722228887943,4.3037,193.53,193.47,14.4724]
[1722228888143,12.83,193.52,193.47,14.4724]
[1722228889274,16.9639,193.52,193.47,14.4724]
[1722228889944,12.83,193.52,193.47,14.4724]
[1722228894153,12.83,193.52,193.48,4.1347]
[1722228894355,0.17,193.53,193.49,4.1345]
[1722228894555,13.0,193.53,193.49,4.1345]
[1722228894754,0.17,193.53,193.49,4.1345]
[1722228894954,15.53,193.58,193.5,4.1343]
[1722228895166,12.83,193.54,193.5,4.1343]
[1722228895363,12.83,193.54,193.49,4.1345]
[1722228896054,16.9635,193.54,193.48,4.1347]
[1722228896374,12.83,193.53,193.48,4.1347]
[1722228899157,16.9637,193.53,193.47,10.3374]
[1722228899374,0.17,193.52,193.47,10.3374]
[1722228899678,12.83,193.51,193.47,14.4723]
[1722228900051,12.83,193.51,193.47,10.3374]
[1722228901360,12.83,193.51,193.47,14.4723]
[1722228901564,13.0,193.52,193.47,14.4723]
[1722228901858,12.83,193.49,193.45,0.8016419]
[1722228903481,16.9645,193.49,193.45,0.8016419]
[1722228904483,12.83,193.49,193.45,0.8016419]
[1722228904778,2.7050916,193.72,193.46,10.338]
[1722228904779,16.5202,193.56,193.46,10.338]
[1722228905079,12.83,193.53,193.46,23.168]
[1722228905784,12.83,193.52,193.46,10.338]
[1722228906281,12.83,193.52,193.47,4.1349]
[1722228906575,12.83,193.51,193.46,10.338]
[1722228907075,12.83,193.51,193.46,14.4731]
[1722228907376,12.83,193.5,193.46,14.4731]
[1722228909387,12.83,193.5,193.46,10.338]
[1722228909562,4.131,193.66,193.49,25.66]
[1722228909769,12.83,193.64,193.58,4.1325]
[1722228910085,12.83,193.64,193.59,4.1324]
[1722228911172,12.83,193.63,193.58,10.3312]
[1722228911571,12.83,193.61,193.55,28.9873]
[1722228911769,38.0542,193.67,193.52,12.83]
[1722228911770,12.83,193.58,193.52,12.83]
[1722228912095,12.83,193.56,193.53,4.1337]
[1722228912381,12.83,193.56,193.53,4.1336]
[1722228912591,12.83,193.57,193.53,4.1336]
[1722228912883,12.83,193.58,193.53,4.1336]
[1722228913266,45.0,193.64,193.53,10.3338]
[1722228913473,35.53,193.66,193.53,23.1638]
[1722228913474,12.83,193.59,193.53,23.1638]
[1722228913672,12.83,193.6,193.53,23.1638]
[1722228914593,4.1325,193.59,193.53,23.1638]
[1722228914886,16.9625,193.59,193.53,10.3338]
[1722228915576,12.83,193.59,193.53,15.50057179]
[1722228915888,12.83,193.59,193.53,28.33057179]
[1722228916294,12.83,193.6,193.53,28.33057179]
[1722228916467,16.9623,193.6,193.54,4.1334]
[1722228916668,16.9623,193.6,193.54,16.9634]
[1722228917167,16.9623,193.6,193.54,17.99661011]
[1722228917471,16.9623,193.6,193.55,1.03322671]
[1722228917785,4.1323,193.6,193.55,1.03322671]
[1722228918087,24.1323,193.6,193.54,16.9634]
[1722228918471,20.0,193.6,193.54,16.9634]
[1722228918784,0.17,193.63,193.53,10.3338]
[1722228918785,4.1316,193.63,193.57,12.83]
[1722228919087,16.9616,193.63,193.57,12.83]
[1722228919462,4.1318,193.62,193.56,16.9629]
[1722228919967,12.83,193.61,193.54,12.83]
[1722228920484,16.962,193.61,193.55,1.03318854]
[1722228920691,16.962,193.61,193.55,5.16628854]
[1722228921065,16.9618,193.62,193.55,17.99628854]
[1722228921473,16.9618,193.62,193.56,4.133]
[1722228922778,4.1318,193.62,193.56,16.963]
[1722228924484,16.9618,193.62,193.56,4.133]
[1722228925372,12.83,193.62,193.57,4.1328]
[1722228925901,12.83,193.62,193.58,4.1326]
[1722228926286,12.83,193.62,193.57,4.1328]
[1722228929296,12.83,193.61,193.54,12.83]
[1722228929483,16.962,193.61,193.55,4.1332]
[1722228929683,16.962,193.61,193.55,16.9632]
[1722228930083,12.83,193.61,193.56,4.133]
[1722228931704,16.9618,193.62,193.56,4.133]
[1722228932608,4.132,193.61,193.55,27.2964]
[1722228932790,16.962,193.61,193.55,27.2964]
[1722228932987,4.1337,193.53,193.46,15.8812]
[1722228933188,12.83,193.53,193.46,28.7112]
[1722228933387,12.83,193.53,193.46,15.8812]
[1722228933581,12.83,193.53,193.46,28.7112]
[1722228933798,12.83,193.53,193.46,15.8812]
[1722228934003,16.9638,193.53,193.46,28.7112]
[1722228935407,16.9638,193.53,193.47,4.1349]
[1722228935908,12.83,193.52,193.47,4.1349]
[1722228936683,12.83,193.53,193.48,4.1347]
[1722228937717,17.1335,193.54,193.48,4.1347]
[1722228938018,17.1335,193.54,193.47,16.9649]
[1722228938187,6.0437,193.53,193.47,16.9649]
[1722228938390,4.1352,193.46,193.45,0.8016419]
[1722228938698,16.9652,193.46,193.45,0.8016419]
[1722228938895,17.3052,193.46,193.45,0.8016419]
[1722228939906,4.4752,193.46,193.45,0.8016419]
[1722228940220,17.3052,193.46,193.45,0.8016419]
[1722228941118,13.17,193.46,193.45,0.8016419]
[1722228941415,15.5351,193.52,193.45,0.8016419]
[1722228941614,12.83,193.5,193.45,0.8016419]
[1722228941811,12.83,193.51,193.47,4.1349]
[1722228942016,12.83,193.51,193.45,13.6316419]
[1722228942218,12.83,193.52,193.46,10.3379]
[1722228942520,15.1032,193.57,193.46,23.1679]
[1722228942823,12.83,193.52,193.49,4.1345]
[1722228943597,12.83,193.53,193.49,4.1345]
[1722228943813,12.83,193.54,193.49,4.1345]
[1722228945323,6.1707,193.58,193.5,1.03358181]
[1722228945508,20.0,193.57,193.5,1.03358181]
[1722228945896,20.0,193.57,193.51,4.1339]
[1722228946096,4.1328,193.57,193.51,4.1339]
[1722228947115,4.1331,193.56,193.49,14.4706]
[1722228947318,0.17,193.58,193.47,15.4799]
[1722228947319,0.17,193.55,193.47,19.6147]
[1722228947520,0.17,193.57,193.47,19.6147]
[1722228947821,4.1334,193.55,193.49,4.1345]
[1722228947996,0.17,193.54,193.49,4.1345]
[1722228948192,4.303,193.57,193.48,10.3367]
[1722228948519,2.69930133,193.81,193.48,10.3367]
[1722228948520,6.5657,193.74,193.57,10.3319]
[1722228948722,6.5657,193.74,193.6,10.3303]
[1722228948723,10.3237,193.73,193.6,10.3303]
[1722228948905,10.3237,193.73,193.62,4.1317]
[1722228949099,4.1305,193.68,193.61,4.1318]
[1722228949527,4.1302,193.7,193.63,4.1315]
[1722228949711,4.1306,193.68,193.61,4.1318]
[1722228950102,36.025,193.71,193.57,15.2375]
[1722228950293,4.1312,193.65,193.59,4.1324]
[1722228950906,0.17,193.64,193.58,4.1326]
[1722228951418,4.3013,193.64,193.58,4.1326]
[1722228952012,0.17,193.64,193.58,4.1326]
[1722228953107,4.3014,193.64,193.58,4.1326]
[1722228953620,4.3014,193.64,193.57,15.2375]